Workbook

Sheet PriceList
A1: α/α | B1: ΚΑΤΑΛΟΓΟΣ ΤΙΜΩΝ ΤΩΝ ΚΑΤ ΕΛΑΧΙΣΤΩΝ ΠΡΟΣΦΕΡΟΜΕΝΩΝ ΕΙΔΩΝ ΚΥΛΙΚΕΙΟΥ | C1: ΕΤΗΣΙΑ ΕΚΤΙΜΩΜΕΝΗ ΠΟΣΟΤΗΤΑ ΣΕ ΜΕΡΙΔΕΣ Η ΤΕΜΑΧΙΑ | D1: ΕΛΑΧΙΣΤΕΣ ΠΟΣΟΤΗΤΕΣ ΜΕΡΙΔΩΝ ΡΟΦΗΜΑΤΩΝ ΚΑΙ ΣΙΤΙΣΗΣ ΣΕ lt ΚΑΙ gr | E1: ΤΙΜΗ ΜΟΝΑΔΑΣ ΧΩΡΙΣ ΦΠΑ (€) | F1: ΠΟΣΟΣΤΟ ΕΚΠΤΩΣΗΣ ΕΠΙ % | G1: ΤΙΜΗ ΜΟΝΑΔΑΣ ΧΩΡΙΣ ΦΠΑ (€) ΜΕΤΑ ΤΗΝ ΕΚΠΤΩΣΗ | H1: ΣΥΝΟΛΙΚΟ ΚΟΣΤΟΣ (€) ΠΡΟ ΦΠΑ ΜΕΤΑ ΤΗΝ ΕΚΠΤΩΣΗ | J1: ΠΡΟΤΕΙΝΟΜΕΝΗ ΛΙΑΝΙΚΗ ΤΙΜΗ ΜΟΝΑΔΑΣ ΜΕ ΦΠΑ (€) | L1: ΛΙΑΝΙΚΗ ΤΙΜΗ ΜΟΝΑΔΑΣ ΜΕ ΦΠΑ (€) ΜΕΤΑ ΤΗΝ ΕΚΠΤΩΣΗ
B2: ΚΑΦΕΔΕΣ-ΡΟΦΗΜΑΤΑ | F2: Εγγραφή Αριθμού από 0 έως 20%
A3: 1 | B3: ΕΛΛΗΝΙΚΟΣ | C3: 11000 | E3: =J3/1.13 -> 1.327433628 | F3: 0 | G3: =E3-(E3*F3) -> 1.327433628 | H3: =C3*G3 -> 14601.76991 | J3: 1.5 | L3: =G3*1.13 -> 1.5
A4: 2 | B4: ΕΛΛΗΝΙΚΟΣ ΔΙΠΛΟΣ | C4: 18000 | E4: =J4/1.13 -> 1.769911504 | F4: 0 | G4: =E4-(E4*F4) -> 1.769911504 | H4: =C4*G4 -> 31858.40708 | J4: 2 | L4: =G4*1.13 -> 2
A5: 3 | B5: ΝΕΣ ΚΑΦΕ-ΝΕΣ ΚΑΦΕ ΦΡΑΠΕ | C5: 4000 | E5: 1.681415929 | F5: 0 | G5: 1.681415929 | H5: 6725.663717 | J5: 1.9 | L5: 1.9
A6: 4 | B6: ΚΑΠΟΥΤΣΙΝΟ | C6: 14000 | E6: 1.681415929 | F6: 0 | G6: 1.681415929 | H6: 23539.82301 | J6: 1.9 | L6: 1.9
A7: 5 | B7: ΚΑΠΟΥΤΣΙΝΟ ΔΙΠΛΟΣ | C7: 12000 | E7: 2.03539823 | F7: 0 | G7: 2.03539823 | H7: 24424.77876 | J7: 2.3 | L7: 2.3
A8: 6 | B8: ΚΑΠΟΥΤΣΙΝΟ FREDDO | C8: 20000 | E8: 2.212389381 | F8: 0 | G8: 2.212389381 | H8: 44247.78761 | J8: 2.5 | L8: 2.5
A9: 7 | B9: ΕΣΠΡΕΣΟ | C9: 14000 | E9: 1.238938053 | F9: 0 | G9: 1.238938053 | H9: 17345.13274 | J9: 1.4 | L9: 1.4
A10: 8 | B10: ΕΣΠΡΕΣΟ ΔΙΠΛΟ | C10: 10000 | E10: 1.592920354 | F10: 0 | G10: 1.592920354 | H10: 15929.20354 | J10: 1.8 | L10: 1.8
A11: 9 | B11: ΕΣΠΡΕΣΟ FREDDO | C11: 22000 | E11: 1.946902655 | F11: 0 | G11: 1.946902655 | H11: 42831.85841 | J11: 2.2 | L11: 2.2
A12: 10 | B12: ΓΑΛΛΙΚΟΣ | C12: 10500 | E12: 1.415929204 | F12: 0 | G12: 1.415929204 | H12: 14867.25664 | J12: 1.6 | L12: 1.6
A13: 11 | B13: ΣΟΚΟΛΑΤΑ ΡΟΦΗΜΑ | C13: 2000 | E13: 2.477876106 | F13: 0 | G13: 2.477876106 | H13: 4955.752212 | J13: 2.8 | L13: 2.8
A14: 12 | B14: ΤΣΑΙ ΖΕΣΤΟ | C14: 5000 | E14: 1.681415929 | F14: 0 | G14: 1.681415929 | H14: 8407.079646 | J14: 1.9 | L14: 1.9
A15: 13 | B15: ΤΣΑΙ ΠΑΓΩΜΕΝΟ | C15: 1200 | E15: 1.681415929 | F15: 0 | G15: 1.681415929 | H15: 2017.699115 | J15: 1.9 | L15: 1.9
B16: ΧΥΜΟΙ
A17: 14 | B17: ΠΟΡΤΟΚΑΛΙ ΦΥΣΙΚΟΣ (ΦΡΕΣΚΟΣΤΥΜΜΕΝΟΣ) | C17: 10000 | E17: 2.212389381 | F17: 0 | G17: 2.212389381 | H17: 22123.89381 | J17: 2.5 | L17: =G17*1.13 -> 2.5
A18: 15 | B18: ΤΥΠΟΠΟΙΗΜΕΝΟΣ 330ml | C18: 1500 | E18: 1.327433628 | F18: 0 | G18: 1.327433628 | H18: 1991.150442 | J18: 1.5 | L18: 1.5
B19: ΑΝΑΨΥΚΤΙΚΆ
A20: 16 | B20: ΑΝΑΨΥΚΤΙΚΟ ΚΟΥΤΙ 330 m] | C20: 22000 | E20: 1.415929204 | F20: 0 | G20: 1.415929204 | H20: 31150.44248 | J20: 1.6 | L20: =G20*1.13 -> 1.6
A21: 17 | B21: ΑΝΑΨΥΚΤΙΚΟ (ΜΠΟΥΚΑΛΙ 250 ml) | C21: 3000 | E21: 1.327433628 | F21: 0 | G21: 1.327433628 | H21: 3982.300885 | J21: 1.5 | L21: 1.5
A22: 18 | B22: ΕΜΦΙΑΛΩΜΈΝΟ ΝΕΡΟ 1,00 L | C22: 15000 | E22: 1.327433628 | F22: 0 | G22: 1.327433628 | H22: 19911.50442 | J22: 1.5 | L22: 1.5
A23: 19 | B23: ΕΜΦΙΑΛΩΜΈΝΟ ΝΕΡΟ 0.50 (L | C23: 47000 | E23: 0.4424778761 | F23: 0 | G23: 0.4424778761 | H23: 20796.46018 | J23: 0.5 | L23: 0.5
B24: ΙΙΙΤΕΣ
A25: 20 | B25: ΤΥΡΟΠΙΤΑ ΣΦΟΛΙΑΤΑ | C25: 3500 | D25: 150 | E25: 1.415929204 | F25: 0 | G25: 1.415929204 | H25: 4955.752212 | J25: 1.6 | L25: =G25*1.13 -> 1.6
A26: 21 | B26: ΤΥΡΟΠΙΤΑ ΚΟΥΡΟΥ | C26: 3500 | D26: 150 | E26: 1.592920354 | F26: 0 | G26: 1.592920354 | H26: 5575.221239 | J26: 1.8 | L26: 1.8
A27: 22 | B27: ΚΑΣΕΡΟΠΙΤΑ ΣΦΟΛΙΑΤΑ | C27: 1000 | D27: Ι 50 | E27: 1.769911504 | F27: 0 | G27: 1.769911504 | H27: 1769.911504 | J27: 2 | L27: 2
A28: 23 | B28: ΣΠΑΝΑΚΟΠΙΤΑ ΤΑΨΙOΥ | C28: 3000 | D28: 200 | E28: 2.212389381 | F28: 0 | G28: 2.212389381 | H28: 6637.168142 | J28: 2.5 | L28: 2.5
A29: 24 | B29: ΜΠΟΥΓΑΤΣΑ ΘΕΣ/ΚΗΣ | C29: 2000 | D29: 200 | E29: 2.212389381 | F29: 0 | G29: 2.212389381 | H29: 4424.778761 | J29: 2.5 | L29: 2.5
B30: ΚΡΟΥΑΣΑΝ ΓΛΥΚΑ
A31: 25 | B31: ΒΟΥΤΥΡΟΥ | C31: 2000 | D31: 85 | E31: 1.504424779 | F31: 0 | G31: 1.504424779 | H31: 3008.849558 | J31: 1.7 | L31: =G31*1.13 -> 1.7
A32: 26 | B32: ΣΟΚΟΛΑΤΑ | C32: 500 | D32: 95 | E32: 1.769911504 | F32: 0 | G32: 1.769911504 | H32: 884.9557522 | J32: 2 | L32: 2
B33: ΤΟΣΤ- ΣΑΝΤΟΥΙΤΣ
A34: 27 | B34: ΤΟΣΤ ΤΥΡΙ - ΖΑΜΠΟΝ ΓΑΛΟΠΟΥΛΑ | C34: 25000 | D34: 125 | E34: 1.592920354 | F34: 0 | G34: 1.592920354 | H34: 39823.00885 | J34: 1.8 | L34: =G34*1.13 -> 1.8
A35: 28 | B35: ΜΠΑΚΕΤΑ ΛΕΥΚΗ ή ΜΑΥΡΗ (με τυρί-ντομάτα- μαρούλι) | C35: 11000 | D35: 260 | E35: 1.946902655 | F35: 0 | G35: 1.946902655 | H35: 21415.9292 | J35: 2.2 | L35: 2.2
A36: 29 | B36: ΑΡΑΒΙΚΗ ΠΙΤΑ (με αλλαντικό-τυρί-ντομάτα-μαρούλι-μαγιονέζα) | C36: 9000 | D36: 200 | E36: 2.212389381 | F36: 0 | G36: 2.212389381 | H36: 19911.50442 | J36: 2.5 | L36: 2.5
A37: 30 | B37: ΚΟΥΛΟΥΡΙ ΤΥΠΟΥ ΘΕΣ/ΝΙΚΗΣ | C37: 16000 | E37: 0.8849557522 | F37: 0 | G37: 0.8849557522 | H37: 14159.29204 | J37: 1 | L37: 1
A38: 31 | B38: ΚΟΥΛΟΥΡΙ ΤΥΠΟΥ ΘΕΣ/ΝΙΚΗΣ(με τυρί) | C38: 10000 | E38: 2.212389381 | F38: 0 | G38: 2.212389381 | H38: 22123.89381 | J38: 2.5 | L38: 2.5
B39: ΓΛΥΚΑ
A40: 32 | B40: ΓΛΥΚΑ ΔΙΑΦΟΡΑ | C40: 2000 | E40: 3.539823009 | F40: 0 | G40: 3.539823009 | H40: 7079.646018 | J40: 4 | L40: =G40*1.13 -> 4
A41: 33 | B41: ΚΕΪΚ | C41: 2000 | E41: 1.769911504 | F41: 0 | G41: 1.769911504 | H41: 3539.823009 | J41: 2 | L41: 2
A42: 34 | B42: ΦΡΟΥΤΟΣΑΛΑΤΑ ΜΕ ΦΡΕΣΚΑ ΦΡΟΎΤΑ | C42: 7000 | D42: 200 | E42: 3.539823009 | F42: 0 | G42: 3.539823009 | H42: 24778.76106 | J42: 4 | L42: 4
A43: 35 | B43: ΓΙΑΟΥΡΤΙ | C43: 1500 | D43: 200 | E43: 2.654867257 | F43: 0 | G43: 2.654867257 | H43: 3982.300885 | J43: 3 | L43: 3
A44: 36 | B44: ΓΙΑΟΥΡΤΙ ΜΕ ΜΕΛΙ | C44: 500 | D44: 210 | E44: 3.097345133 | F44: 0 | G44: 3.097345133 | H44: 1548.672566 | J44: 3.5 | L44: 3.5
B45: ΜΠΥΡΕΣ
A46: 37 | B46: ΜΠΥΡΑ (ΚΟΥΤΙ 330 ml) | C46: 1500 | E46: =J46/1.24 -> 1.370967742 | F46: 0 | G46: 1.370967742 | H46: 2056.451613 | J46: 1.7 | L46: =G46*1.24 -> 1.7
A47: 38 | B47: ΜΠΥΡA (ΜΠΟΥΚΑΛΙ 500 ml) | C47: 1000 | E47: =J47/1.24 -> 1.774193548 | F47: 0 | G47: 1.774193548 | H47: 1774.193548 | J47: 2.2 | L47: =G47*1.24 -> 2.2
B48: ΚΡΑΣΙΑ
A49: 39 | B49: ΠΟΤΗΡΙ ΚΡΑΣΙ ΛΕΥΚΟ | C49: 3500 | D49: 250ml | E49: =J49/1.24 -> 3.225806452 | F49: 0 | G49: =E49-(E49*F49) -> 3.225806452 | H49: 11290.32258 | J49: 4 | L49: =G49*1.24 -> 4
A50: 40 | B50: ΠΟΤΗΡΙ ΚΡΑΣΙ ΚΟΚΚΙΝΟ | C50: 2000 | D50: 250ml | E50: =J50/1.24 -> 3.225806452 | F50: 0 | G50: =E50-(E50*F50) -> 3.225806452 | H50: 6451.612903 | J50: 4 | L50: =G50*1.24 -> 4
B51: ΟΙΝΟΠΝΕΥΜΑΤΩΔΗ
A52: 41 | B52: ΠΟΤΟ ΑΠΛΟ | C52: 5000 | E52: =J52/1.24 -> 7.258064516 | F52: 0 | G52: 7.258064516 | H52: 36290.32258 | J52: 9 | L52: =G52*1.24 -> 9
A53: 42 | B53: ΠΟΤΟ ΣΠΕΣΙΑΛ | C53: 500 | E53: =J53/1.24 -> 9.677419355 | F53: 0 | G53: 9.677419355 | H53: 4838.709677 | J53: 12 | L53: =G53*1.24 -> 12
A54: 43 | B54: ΤΣΙΠΟΥΡΟ - ΟΥΖΟ ΠΟΤΗΡΙ | C54: 500 | E54: 3.225806452 | F54: 0 | G54: 3.225806452 | H54: 1612.903226 | J54: 4 | L54: 4
B55: ΚΑΤΑΛΟΓΟΣ ΤΙΜΩΝ ΤΩΝ ΚΑΤ ΕΛΑΧΙΣΤΩΝ ΠΡΟΣΦΕΡΟΜΕΝΩΝ ΕΙΔΩΝ ΕΣΤΙΑΤΟΡΙΟΥ | C55: ΕΤΗΣΙΑ ΕΚΤΙΜΩΜΕΝΗ ΠΟΣΟΤΗΤΑ ΣΕ ΜΕΡΙΔΕΣ Ή ΤΕΜΑΧΙΑ | D55: ΕΛΑΧΙΣΤΕΣ ΠΟΣΟΤΗΤΕΣ ΜΕΡΙΔΩΝ ΡΟΦΗΜΑΤΩΝ ΚΑΙ ΣΙΤΙΣΗΣ ΣΕ lt ΚΑΙ gr | E55: ΤΙΜΗ ΜΟΝΑΔΑΣ ΧΩΡΙΣ ΦΠΑ (€) | F55: ΠΟΣΟΣΤΟ ΕΚΠΤΩΣΗΣ ΕΠΙ % | G55: ΤΙΜΗ ΜΟΝΑΔΑΣ ΧΩΡΙΣ ΦΠΑ (€) ΜΕΤΑ ΤΗΝ ΕΚΠΤΩΣΗ | H55: ΣΥΝΟΛΙΚΟ ΚΟΣΤΟΣ (€) ΠΡΟ ΦΠΑ ΜΕΤΑ ΤΗΝ ΕΚΠΤΩΣΗ | J55: ΠΡΟΤΕΙΝΟΜΕΝΗ ΤΙΜΗ ΜΟΝΑΔΑΣ ΜΕ ΦΠΑ (€) | L55: ΤΙΜΗ ΜΟΝΑΔΑΣ ΜΕ ΦΠΑ (€) ΜΕΤΑ ΤΗΝ ΕΚΠΤΩΣΗ
B56: ΟΣΠΡΙΑ | F56: Εγγραφή Αριθμού από 0 έως 20%
A57: 44 | B57: ΦΑΣΟΛΑΔΑ | C57: 360 | D57: 380 | E57: =J57/1.13 -> 4.424778761 | F57: 0 | G57: =E57-(E57*F57) -> 4.424778761 | H57: =C57*G57 -> 1592.920354 | J57: 5 | L57: =G57*1.13 -> 5
A58: 45 | B58: ΦΑΚΕΣ | C58: 350 | D58: 380 | E58: 4.424778761 | F58: 0 | G58: 4.424778761 | H58: 1548.672566 | J58: 5 | L58: 5
A59: 46 | B59: ΦΑΣΟΛΙΑ ΓΙΓΑΝΤΕΣ | C59: 250 | D59: 380 | E59: 5.309734513 | F59: 0 | G59: 5.309734513 | H59: 1327.433628 | J59: 6 | L59: 6
A60: 47 | B60: ΡΕΒΙΘΙΑ | C60: 350 | D60: 380 | E60: 4.424778761 | F60: 0 | G60: 4.424778761 | H60: 1548.672566 | J60: 5 | L60: 5
B61: ΛΑΔΕΡΑ
A62: 48 | B62: ΦΑΣΟΛΑΚΙΑ | C62: 500 | D62: 350 | E62: =J62/1.13 -> 5.752212389 | F62: 0 | G62: 5.752212389 | H62: =C62*G62 -> 2876.106195 | J62: 6.5 | L62: =G62*1.13 -> 6.5
A63: 49 | B63: ΑΡΑΚΑΣ | C63: 300 | D63: 350 | E63: 5.309734513 | F63: 0 | G63: 5.309734513 | H63: 1592.920354 | J63: 6 | L63: 6
A64: 50 | B64: ΜΠΑΜΙΕΣ | C64: 300 | D64: 350 | E64: 5.309734513 | F64: 0 | G64: 5.309734513 | H64: 1592.920354 | J64: 6 | L64: 6
A65: 51 | B65: ΓΕΜΙΣΤΑ ( χωρίς κιμά) | C65: 1000 | D65: 380 | E65: 5.309734513 | F65: 0 | G65: 5.309734513 | H65: 5309.734513 | J65: 6 | L65: 6
A66: 52 | B66: ΠΑΤΑΤΕΣ ΦΟΥΡΝΟΥ | C66: 350 | D66: 350 | E66: 4.424778761 | F66: 0 | G66: 4.424778761 | H66: 1548.672566 | J66: 5 | L66: 5
A67: 53 | B67: ΛΑΧΑΝΟΡΥΖΟ-ΣΠΑΝΑΚΟΡΥΖΟ | C67: 350 | D67: 350 | E67: 4.424778761 | F67: 0 | G67: 4.424778761 | H67: 1548.672566 | J67: 5 | L67: 5
A68: 54 | B68: ΜΠΡΙΑΜ | C68: 350 | D68: 350 | E68: 5.309734513 | F68: 0 | G68: 5.309734513 | H68: 1858.40708 | J68: 6 | L68: 6
B69: ΚΙΜΑΔΕΣ
A70: 55 | B70: ΜΠΙΦΤΕΚΙ ΣΧΑΡΑΣ | C70: 2000 | D70: 280 | E70: =J70/1.13 -> 6.194690265 | F70: 0 | G70: 6.194690265 | H70: =C70*G70 -> 12389.38053 | J70: 7 | L70: =G70*1.13 -> 7
A71: 56 | B71: ΚΕΜΠΑΠ | C71: 1000 | D71: 250 | E71: 6.637168142 | F71: 0 | G71: 6.637168142 | H71: 6637.168142 | J71: 7.5 | L71: 7.5
A72: 57 | B72: ΣΟΥΤΖΟΥΚΑΚΙΑ | C72: 1500 | D72: 280 | E72: 6.194690265 | F72: 0 | G72: 6.194690265 | H72: 9292.035398 | J72: 7 | L72: 7
A73: 58 | B73: ΜΟΥΣΑΚΑΣ | C73: 550 | D73: 400 | E73: 6.194690265 | F73: 0 | G73: 6.194690265 | H73: 3407.079646 | J73: 7 | L73: 7
A74: 59 | B74: ΠΑΣΤΙΤΣΙΟ | C74: 600 | D74: 400 | E74: 6.194690265 | F74: 0 | G74: 6.194690265 | H74: 3716.814159 | J74: 7 | L74: 7
B75: ΖΥΜΑΡΙΚΑ
A76: 60 | B76: ΣΠΑΓΤΈΤΙ ΝΑΠΟΛΙΤΕΝ | C76: 350 | D76: 280 | E76: =J76/1.13 -> 5.309734513 | F76: 0 | G76: 5.309734513 | H76: =C76*G76 -> 1858.40708 | J76: 6 | L76: =G76*1.13 -> 6
A77: 61 | B77: ΣΠΑΓΤΈΤΙ ΜΠΟΛΩΝΕΖ | C77: 350 | D77: 320 | E77: 5.752212389 | F77: 0 | G77: 5.752212389 | H77: 2013.274336 | J77: 6.5 | L77: 6.5
A78: 62 | B78: ΣΠΑΓΓΈΤΙ ΚΑΡΜΠΟΝΑΡΑ | C78: 200 | D78: 280 | E78: 7.079646018 | F78: 0 | G78: 7.079646018 | H78: 1415.929204 | J78: 8 | L78: 8
A79: 63 | B79: ΡΙΓΓΑΤΟΝΙ 4 ΤΥΡΙΑ | C79: 150 | D79: 280 | E79: 7.079646018 | F79: 0 | G79: 7.079646018 | H79: 1061.946903 | J79: 8 | L79: 8
A80: 64 | B80: ΡΙΓΓΑΤΟΝΙ (με ζαμπόν και κρέμα γάλακτος) | C80: 100 | D80: 320 | E80: 7.079646018 | F80: 0 | G80: 7.079646018 | H80: 707.9646018 | J80: 8 | L80: 8
A81: 65 | B81: ΚΑΝΕΛΟΝΙΑ | C81: 200 | D81: 450 | E81: 7.522123894 | F81: 0 | G81: 7.522123894 | H81: 1504.424779 | J81: 8.5 | L81: 8.5
A82: 66 | B82: ΤΟΡΤΕΛΙΝΙΑ | C82: 250 | D82: 320 | E82: 7.522123894 | F82: 0 | G82: 7.522123894 | H82: 1880.530973 | J82: 8.5 | L82: 8.5
A83: 67 | B83: ΣΟΥΦΛΕ ΛΑΧΑΝΙΚΩΝ | C83: 400 | D83: 450 | E83: 7.522123894 | F83: 0 | G83: 7.522123894 | H83: 3008.849558 | J83: 8.5 | L83: 8.5
A84: 68 | B84: ΠΑΣΤΑ ΜΕ ΣΟΛΩΜΟ | C84: 250 | D84: 280 | E84: 8.849557522 | F84: 0 | G84: 8.849557522 | H84: 2212.389381 | J84: 10 | L84: 10
A85: 69 | B85: ΜΑΚΑΡΟΝΙ ΚΟΦΤ0 ΧΤΑΠΟΔΙ | C85: 250 | D85: 340 | E85: 8.849557522 | F85: 0 | G85: 8.849557522 | H85: 2212.389381 | J85: 10 | L85: 10
A86: 70 | B86: ΓΑΡΙΔΟΜΑΚΑΡΟΝΑΔΑ | C86: 200 | D86: 350 | E86: 10.61946903 | F86: 0 | G86: 10.61946903 | H86: 2123.893805 | J86: 12 | L86: 12
B87: ΠΙΑΤΑ ΗΜΕΡΑ
A88: 71 | B88: ΜΟΣΧΑΡΙ ΛΕΜΟΝΑΤΟ | C88: 500 | D88: 300 | E88: =J88/1.13 -> 7.96460177 | F88: 0 | G88: 7.96460177 | H88: =C88*G88 -> 3982.300885 | J88: 9 | L88: =G88*1.13 -> 9
A89: 72 | B89: ΜΟΣΧΑΡΙ ΚΟΚΚΙΝΙΣΤΟ | C89: 1500 | D89: 300 | E89: 7.96460177 | F89: 0 | G89: 7.96460177 | H89: 11946.90265 | J89: 9 | L89: 9
A90: 73 | B90: ΧΟΙΡΙΝΟ ΦΟΥΡΝΟΥ | C90: 1100 | D90: 300 | E90: 7.522123894 | F90: 0 | G90: 7.522123894 | H90: 8274.336283 | J90: 8.5 | L90: 8.5
A91: 74 | B91: ΧΟΙΡΙΝΟ ΡΟΛΟ | C91: 300 | D91: 250 | E91: 7.522123894 | F91: 0 | G91: 7.522123894 | H91: 2256.637168 | J91: 8.5 | L91: 8.5
A92: 75 | B92: ΑΡΝΙ ΦΟΥΡΝΟΥ | C92: 500 | D92: 300 | E92: 7.96460177 | F92: 0 | G92: 7.96460177 | H92: 3982.300885 | J92: 9 | L92: 9
A93: 76 | B93: ΚΟΤΟΠΟΥΛΟ ΡΟΛΟ | C93: 400 | D93: 250 | E93: 7.079646018 | F93: 0 | G93: 7.079646018 | H93: 2831.858407 | J93: 8 | L93: 8
A94: 77 | B94: ΚΟΤΟΠΟΥΛ0 ΦΟΥΡΝΟΥ | C94: 1000 | D94: 300 | E94: 7.079646018 | F94: 0 | G94: 7.079646018 | H94: 7079.646018 | J94: 8 | L94: 8
A95: 78 | B95: ΚΟΤΟΠΟΥΛ0 ΜΑΓΕΙΡΕΥΤΟ | C95: 2500 | D95: 300 | E95: 7.079646018 | F95: 0 | G95: 7.079646018 | H95: 17699.11504 | J95: 8 | L95: 8
B96: ΤΗΣ ΩΡΑΣ
A97: 79 | B97: ΜΠΡΙΖΟΛΑ ΜΟΣΧΟΥ ΓΑΛΑΚΤΟΣ | C97: 550 | D97: 350 | E97: =J97/1.13 -> 10.61946903 | F97: 0 | G97: 10.61946903 | H97: 5840.707965 | J97: 12 | L97: =G97*1.13 -> 12
A98: 80 | B98: ΜΠΡΙΖΟΛΑ ΧΟΙΡΙΝΗ | C98: 3500 | D98: 350 | E98: 7.96460177 | F98: 0 | G98: 7.96460177 | H98: 27876.10619 | J98: 9 | L98: 9
A99: 81 | B99: ΨΑΡΟΝΕΦΡΙ | C99: 1000 | D99: 250 | E99: 8.407079646 | F99: 0 | G99: 8.407079646 | H99: 8407.079646 | J99: 9.5 | L99: 9.5
A100: 82 | B100: ΓΑΛΟΠΟΥΛΑ ΦΙΛΕΤΟ | C100: 300 | D100: 250 | E100: 7.522123894 | F100: 0 | G100: 7.522123894 | H100: 2256.637168 | J100: 8.5 | L100: 8.5
A101: 83 | B101: ΚΟΤΟΠΟΥΛΟ ΦΙΛΕΤΟ | C101: 1200 | D101: 220 | E101: 7.079646018 | F101: 0 | G101: 7.079646018 | H101: 8495.575221 | J101: 8 | L101: 8
A102: 84 | B102: ΚΟΤΟΠΟΥΛΟ ΣΧΑΡΑΣ (ΠΑΙΔΑΚΙΑ) | C102: 300 | D102: 250 | E102: 7.079646018 | F102: 0 | G102: 7.079646018 | H102: 2123.893805 | J102: 8 | L102: 8
A103: 85 | B103: ΣΥΚΩΤΙ | C103: 550 | D103: 220 | E103: 6.194690265 | F103: 0 | G103: 6.194690265 | H103: 3407.079646 | J103: 7 | L103: 7
B104: ΨΑΡΙΑ ΦΡΕΣΚΑ
A105: 86 | B105: ΓΑΥΡΟΣ | C105: 150 | D105: 200 | E105: =J105/1.13 -> 6.194690265 | F105: 0 | G105: 6.194690265 | H105: 929.2035398 | J105: 7 | L105: =G105*1.13 -> 7
A106: 87 | B106: ΜΑΡΙΔΑ | C106: 100 | D106: 200 | E106: 6.194690265 | F106: 0 | G106: 6.194690265 | H106: 619.4690265 | J106: 7 | L106: 7
A107: 88 | B107: ΛΑΒΡΑΚΙ ΙΧΘΥΟΤΡΟΦΕΙΟΥ | C107: 500 | D107: 350 | E107: 8.849557522 | F107: 0 | G107: 8.849557522 | H107: 4424.778761 | J107: 10 | L107: 10
A108: 89 | B108: ΣΑΡΔΕΛΕΣ | C108: 350 | D108: 200 | E108: 7.079646018 | F108: 0 | G108: 7.079646018 | H108: 2477.876106 | J108: 8 | L108: 8
A109: 90 | B109: ΣΟΛΩΜΟΣ | C109: 1600 | D109: 200 | E109: 8.849557522 | F109: 0 | G109: 8.849557522 | H109: 14159.29204 | J109: 10 | L109: 10
A110: 91 | B110: ΦΙΛΕΤΟ ΤΟΝΟΥ | C110: 250 | D110: 200 | E110: 7.079646018 | F110: 0 | G110: 7.079646018 | H110: 1769.911504 | J110: 8 | L110: 8
A111: 92 | B111: ΤΣΙΠΟΥΡΑ ΙΧΘΥΟΤΡΟΦΕΙΟΥ | C111: 600 | D111: 350 | E111: 7.96460177 | F111: 0 | G111: 7.96460177 | H111: 4778.761062 | J111: 9 | L111: 9
B112: ΨΑΡΙΑ ΚΑΤΕΨΥΓΜΕΝΑ
A113: 93 | B113: ΒΑΚΑΛΑΟΣ | C113: 200 | D113: 250 | E113: =J113/1.13 -> 7.522123894 | F113: 0 | G113: 7.522123894 | H113: 1504.424779 | J113: 8.5 | L113: =G113*1.13 -> 8.5
A114: 94 | B114: ΣΟΥΠΙΕΣ | C114: 200 | D114: 250 | E114: 7.96460177 | F114: 0 | G114: 7.96460177 | H114: 1592.920354 | J114: 9 | L114: 9
A115: 95 | B115: ΚΑΛΑΜΑΡΑΚΙΑ | C115: 200 | D115: 250 | E115: 7.522123894 | F115: 0 | G115: 7.522123894 | H115: 1504.424779 | J115: 8.5 | L115: 8.5
A116: 96 | B116: ΠΕΡΚΑ | C116: 150 | D116: 250 | E116: 7.079646018 | F116: 0 | G116: 7.079646018 | H116: 1061.946903 | J116: 8 | L116: 8
B117: ΣΟΥΠΕΣ
A118: 97 | B118: ΚΟΤΟΣΟΥΠΑ | C118: 400 | D118: 400 | E118: =J118/1.13 -> 6.194690265 | F118: 0 | G118: 6.194690265 | H118: 2477.876106 | J118: 7 | L118: =G118*1.13 -> 7
A119: 98 | B119: ΨΑΡΟΣΟΥΠΑ | C119: 200 | D119: 400 | E119: 6.194690265 | F119: 0 | G119: 6.194690265 | H119: 1238.938053 | J119: 7 | L119: 7
A120: 99 | B120: ΚΡΕΑΤΟΣΟΥΠΑ | C120: 300 | D120: 400 | E120: 6.194690265 | F120: 0 | G120: 6.194690265 | H120: 1858.40708 | J120: 7 | L120: 7
A121: 100 | B121: ΧΟΡΤΟΣΟΥΠΑ | C121: 100 | D121: 400 | E121: 5.309734513 | F121: 0 | G121: =E121-(E121*F121) -> 5.309734513 | H121: 530.9734513 | J121: 6 | L121: 6
B122: ΣΑΛΑΤΕΣ
A123: 101 | B123: ΧΩΡΙΑΤΙΚΗ | C123: 700 | D123: 400 | E123: =J123/1.13 -> 7.079646018 | F123: 0 | G123: 7.079646018 | H123: 4955.752212 | J123: 8 | L123: =G123*1.13 -> 8
A124: 102 | B124: ΝΤΟΜΑΤΑ-ΑΓΓΟΥΡΙ | C124: 700 | D124: 300 | E124: 4.424778761 | F124: 0 | G124: 4.424778761 | H124: 3097.345133 | J124: 5 | L124: 5
A125: 103 | B125: ΧΟΡΤΑ | C125: 600 | D125: 300 | E125: 4.424778761 | F125: 0 | G125: 4.424778761 | H125: 2654.867257 | J125: 5 | L125: 5
A126: 104 | B126: ΒΡΑΣΤΑ ΛΑΧΑΝΙΚΑ | C126: 850 | D126: 300 | E126: 6.194690265 | F126: 0 | G126: 6.194690265 | H126: 5265.486726 | J126: 7 | L126: 7
A127: 105 | B127: ΚΑΙΣΑΡΑ | C127: 500 | D127: 350 | E127: 6.194690265 | F127: 0 | G127: 6.194690265 | H127: 3097.345133 | J127: 7 | L127: 7
A128: 106 | B128: ΤΟΝΟΣΑΛΑΤΑ | C128: 400 | D128: 350 | E128: 6.194690265 | F128: 0 | G128: 6.194690265 | H128: 2477.876106 | J128: 7 | L128: 7
B129: ΟΡΕΚΤΙΚΑ
A130: 107 | B130: ΠΑΤΑΤΕΣ ΤΗΓΑΝΙΤΕΣ | C130: 2000 | D130: 250 | E130: =J130/1.13 -> 3.982300885 | F130: 0 | G130: 3.982300885 | H130: 7964.60177 | J130: 4.5 | L130: =G130*1.13 -> 4.5
A131: 108 | B131: ΟΜΕΛΕΤΑ ΜΕ ΤΥΡΙ | C131: 1000 | D131: 300 | E131: 3.539823009 | F131: 0 | G131: 3.539823009 | H131: 3539.823009 | J131: 4 | L131: 4
A132: 109 | B132: ΡΥΖΙ | C132: 300 | D132: 300 | E132: 3.097345133 | F132: 0 | G132: 3.097345133 | H132: 929.2035398 | J132: 3.5 | L132: 3.5
B133: ΤΥΡΙΑ
A134: 110 | B134: ΦΕΤΑ | C134: 2000 | D134: 100 | E134: =J134/1.13 -> 3.539823009 | F134: 0 | G134: 3.539823009 | H134: 7079.646018 | J134: 4 | L134: =G134*1.13 -> 4
A135: 111 | B135: ΓΡΑΒΙΕΡΑ | C135: 350 | D135: 100 | E135: 5.309734513 | F135: 0 | G135: 5.309734513 | H135: 1858.40708 | J135: 6 | L135: 6
A137: 112 | B137: ΨΩΜΙ ΚΑΤ ΆΤΟΜΟ | C137: 25000 | D137: 100 | E137: =J137/1.13 -> 0.4424778761 | F137: 0 | G137: 0.4424778761 | H137: =C137*G137 -> 11061.9469 | J137: 0.5 | L137: =G137*1.13 -> 0.5
D139: ΑΘΡΟΙΣΜΑ ΣΥΝΟΛΙΚΟΥ ΚΟΣΤΟΥΣ | H139: =SUM(H3:H137) -> 890801.2418
B141: ΣΗΜΕΙΩΣΗ ΣΤΑ ΜΗ ΑΛΚΟΟΛΟΥΧΑ ΠΟΤΑ -ΚΑΦΕΔΕΣ-ΧΥΜΟΥΣ ΕΧΕΙ ΥΠΟΛΟΓΙΣΘΕΙ ΦΠΑ 13%
